[Event "Titled Tuesday Blitz June 8 2021"]
[White "Hess, Robert"]
[Black "Nitish Belurkar"]
[WhiteFideId "2022036"]
[BlackFideId "5084768"]
[WhiteElo "2771"]
[BlackElo "2623"]
[Result "1-0"]
[Round "07"]
[TimeControl "180+1"]
[Date "2021.06.08"]
[WhiteClock "0:00:04"]
[BlackClock "0:00:01"]

1. b3 {[%clk 0:03:00]}  d6 {[%clk 0:02:59]} 2. Bb2 {[%clk 0:03:01]}  e6 {[%clk 0:03:00]} 3. Nf3 {[%clk 0:03:01]}  Nf6 {[%clk 0:03:00]} 4. c3 {[%clk 0:03:02]}  Be7 {[%clk 0:03:01]} 5. c4 {[%clk 0:03:03]}  O-O {[%clk 0:03:02]} 6. g3 {[%clk 0:03:03]}  d5 {[%clk 0:03:02]} 7. Bg2 {[%clk 0:03:04]}  b6 {[%clk 0:03:02]} 8. cxd5 {[%clk 0:03:02]}  exd5 {[%clk 0:03:01]} 9. O-O {[%clk 0:03:03]}  Bb7 {[%clk 0:03:00]} 10. Nc3 {[%clk 0:03:01]}  d4 {[%clk 0:02:59]} 11. Nb5 {[%clk 0:02:55]}  c5 {[%clk 0:02:57]} 12. e3 {[%clk 0:02:54]}  a6 {[%clk 0:02:39]} 13. Na3 {[%clk 0:02:54]}  Nc6 {[%clk 0:02:21]} 14. Re1 {[%clk 0:02:51]}  Re8 {[%clk 0:02:15]} 15. exd4 {[%clk 0:02:49]}  Nxd4 {[%clk 0:02:10]} 16. Nxd4 {[%clk 0:02:46]}  Bxg2 {[%clk 0:02:11]} 17. Kxg2 {[%clk 0:02:35]}  cxd4 {[%clk 0:02:10]} 18. Nc4 {[%clk 0:02:32]}  b5 {[%clk 0:02:08]} 19. Ne5 {[%clk 0:02:33]}  Rc8 {[%clk 0:01:55]} 20. Qf3 {[%clk 0:02:30]}  Qb6 {[%clk 0:01:49]} 21. Rac1 {[%clk 0:02:22]}  Bb4 {[%clk 0:01:45]} 22. Rxc8 {[%clk 0:02:10]}  Rxc8 {[%clk 0:01:46]} 23. Rc1 {[%clk 0:01:52]}  Rxc1 {[%clk 0:00:46]} 24. Qa8+ {[%clk 0:01:50]}  Bf8 {[%clk 0:00:46]} 25. Bxc1 {[%clk 0:01:42]}  Qd6 {[%clk 0:00:44]} 26. Nf3 {[%clk 0:01:34]}  Qd5 {[%clk 0:00:38]} 27. Qxd5 {[%clk 0:00:35]}  Nxd5 {[%clk 0:00:39]} 28. a3 {[%clk 0:00:36]}  Bc5 {[%clk 0:00:15]} 29. Bb2 {[%clk 0:00:36]}  b4 {[%clk 0:00:13]} 30. a4 {[%clk 0:00:34]}  Nc3 {[%clk 0:00:13]} 31. dxc3 {[%clk 0:00:11]}  bxc3 {[%clk 0:00:14]} 32. Bxc3 {[%clk 0:00:08]}  dxc3 {[%clk 0:00:13]} 33. Ne1 {[%clk 0:00:09]}  Kf8 {[%clk 0:00:13]} 34. Kf3 {[%clk 0:00:08]}  Ke7 {[%clk 0:00:13]} 35. Ke2 {[%clk 0:00:06]}  Kd6 {[%clk 0:00:13]} 36. f3 {[%clk 0:00:04]}  Bg1 {[%clk 0:00:12]} 37. h3 {[%clk 0:00:04]}  Kc5 {[%clk 0:00:12]} 38. Nc2 {[%clk 0:00:03]}  f5 {[%clk 0:00:09]} 39. Kd3 {[%clk 0:00:03]}  Bh2 {[%clk 0:00:10]} 40. g4 {[%clk 0:00:03]}  fxg4 {[%clk 0:00:10]} 41. fxg4 {[%clk 0:00:04]}  Be5 {[%clk 0:00:11]} 42. b4+ {[%clk 0:00:04]}  Kd5 {[%clk 0:00:11]} 43. Ne3+ {[%clk 0:00:04]}  Ke6 {[%clk 0:00:11]} 44. Nd1 {[%clk 0:00:04]}  Bd6 {[%clk 0:00:10]} 45. Kxc3 {[%clk 0:00:04]}  Kd5 {[%clk 0:00:09]} 46. Ne3+ {[%clk 0:00:03]}  Ke4 {[%clk 0:00:10]} 47. Nf5 {[%clk 0:00:04]}  Bf8 {[%clk 0:00:10]} 48. Kc4 {[%clk 0:00:04]}  g6 {[%clk 0:00:10]} 49. Ng3+ {[%clk 0:00:02]}  Kf3 {[%clk 0:00:09]} 50. Nf1 {[%clk 0:00:02]}  Kg2 {[%clk 0:00:10]} 51. Ne3+ {[%clk 0:00:03]}  Kxh3 {[%clk 0:00:10]} 52. b5 {[%clk 0:00:03]}  axb5+ {[%clk 0:00:10]} 53. axb5 {[%clk 0:00:04]}  Kg3 {[%clk 0:00:11]} 54. Kd5 {[%clk 0:00:04]}  Kf4 {[%clk 0:00:10]} 55. b6 {[%clk 0:00:04]}  Bg7 {[%clk 0:00:03]} 56. Nc4 {[%clk 0:00:04]}  Kxg4 {[%clk 0:00:01]} 57. b7 {[%clk 0:00:04]} 1-0


[Site "https://www.chess.com"]

[Event "Titled Tuesday Blitz June 8 2021"]
[White "Holt, Conrad"]
[Black "Morefield, Jason"]
[WhiteFideId "2034387"]
[BlackFideId "30920825"]
[WhiteElo "2771"]
[BlackElo "2619"]
[Result "1-0"]
[Round "07"]
[TimeControl "180+1"]
[Date "2021.06.08"]
[WhiteClock "0:02:12"]
[BlackClock "0:02:05"]

1. d4 {[%clk 0:03:00]}  d5 {[%clk 0:03:00]} 2. c4 {[%clk 0:03:01]}  c6 {[%clk 0:03:00]} 3. Nc3 {[%clk 0:03:01]}  Nf6 {[%clk 0:03:00]} 4. e3 {[%clk 0:03:01]}  e6 {[%clk 0:03:01]} 5. Bd3 {[%clk 0:03:01]}  dxc4 {[%clk 0:03:01]} 6. Bxc4 {[%clk 0:03:01]}  b5 {[%clk 0:03:01]} 7. Bb3 {[%clk 0:02:56]}  Bd6 {[%clk 0:03:00]} 8. e4 {[%clk 0:02:48]}  e5 {[%clk 0:02:59]} 9. dxe5 {[%clk 0:02:47]}  Bxe5 {[%clk 0:03:00]} 10. Qxd8+ {[%clk 0:02:47]}  Kxd8 {[%clk 0:03:01]} 11. Bxf7 {[%clk 0:02:47]}  b4 {[%clk 0:02:52]} 12. Na4 {[%clk 0:02:47]}  Rf8 {[%clk 0:02:50]} 13. Nf3 {[%clk 0:02:41]}  Nbd7 {[%clk 0:02:38]} 14. Be6 {[%clk 0:02:34]}  Ba6 {[%clk 0:02:33]} 15. Nxe5 {[%clk 0:02:23]}  Nxe5 {[%clk 0:02:32]} 16. Nc5 {[%clk 0:02:23]}  Bb5 {[%clk 0:02:28]} 17. Bf4 {[%clk 0:02:19]}  Nfg4 {[%clk 0:02:16]} 18. O-O-O {[%clk 0:02:13]}  Kc7 {[%clk 0:02:06]} 19. Bxg4 {[%clk 0:02:13]}  Rxf4 {[%clk 0:02:05]} 20. Ne6+ {[%clk 0:02:12]} 1-0


[Site "https://www.chess.com"]

[Event "Titled Tuesday Blitz June 8 2021"]
[White "Ibrahimli, Murad"]
[Black "Nevednichy, Vladislav"]
[WhiteFideId "13410229"]
[BlackFideId "1205730"]
[WhiteElo "2109"]
[BlackElo "2374"]
[Result "1-0"]
[Round "07"]
[TimeControl "180+1"]
[Date "2021.06.08"]
[WhiteClock "0:00:10"]
[BlackClock "0:00:15"]

1. d4 {[%clk 0:03:00]}  Nf6 {[%clk 0:02:59]} 2. c4 {[%clk 0:03:01]}  e6 {[%clk 0:02:59]} 3. Nf3 {[%clk 0:03:00]}  d5 {[%clk 0:03:00]} 4. Nc3 {[%clk 0:03:00]}  a6 {[%clk 0:03:00]} 5. c5 {[%clk 0:02:56]}  Nc6 {[%clk 0:02:58]} 6. Bf4 {[%clk 0:02:54]}  Nh5 {[%clk 0:02:51]} 7. Bg5 {[%clk 0:02:54]}  Be7 {[%clk 0:02:51]} 8. h4 {[%clk 0:02:38]}  O-O {[%clk 0:02:42]} 9. g4 {[%clk 0:02:31]}  Nf6 {[%clk 0:02:42]} 10. Bxf6 {[%clk 0:02:32]}  Bxf6 {[%clk 0:02:41]} 11. g5 {[%clk 0:02:32]}  Be7 {[%clk 0:02:41]} 12. e3 {[%clk 0:02:33]}  e5 {[%clk 0:02:39]} 13. Nxe5 {[%clk 0:02:27]}  Nxe5 {[%clk 0:02:39]} 14. dxe5 {[%clk 0:02:28]}  c6 {[%clk 0:02:27]} 15. Qd4 {[%clk 0:02:23]}  Be6 {[%clk 0:02:18]} 16. O-O-O {[%clk 0:01:26]}  Qa5 {[%clk 0:01:50]} 17. Na4 {[%clk 0:00:58]}  b5 {[%clk 0:01:50]} 18. Nb6 {[%clk 0:00:58]}  Rab8 {[%clk 0:01:42]} 19. a3 {[%clk 0:00:58]}  Bxc5 {[%clk 0:01:26]} 20. Qxc5 {[%clk 0:00:56]}  Qxb6 {[%clk 0:01:26]} 21. Qxb6 {[%clk 0:00:46]}  Rxb6 {[%clk 0:01:26]} 22. b4 {[%clk 0:00:46]}  c5 {[%clk 0:01:18]} 23. bxc5 {[%clk 0:00:45]}  Rc8 {[%clk 0:01:18]} 24. Kb2 {[%clk 0:00:45]}  Rxc5 {[%clk 0:01:18]} 25. Bd3 {[%clk 0:00:44]}  a5 {[%clk 0:01:10]} 26. Rc1 {[%clk 0:00:43]}  Rxc1 {[%clk 0:01:08]} 27. Rxc1 {[%clk 0:00:44]}  g6 {[%clk 0:00:59]} 28. Rc5 {[%clk 0:00:43]}  b4 {[%clk 0:00:58]} 29. a4 {[%clk 0:00:43]}  b3 {[%clk 0:00:38]} 30. Rxa5 {[%clk 0:00:41]}  Rb4 {[%clk 0:00:38]} 31. f4 {[%clk 0:00:38]}  d4 {[%clk 0:00:37]} 32. e4 {[%clk 0:00:30]}  Bc4 {[%clk 0:00:31]} 33. Bxc4 {[%clk 0:00:24]}  Rxc4 {[%clk 0:00:31]} 34. f5 {[%clk 0:00:21]}  gxf5 {[%clk 0:00:28]} 35. exf5 {[%clk 0:00:21]}  d3 {[%clk 0:00:25]} 36. f6 {[%clk 0:00:21]}  h5 {[%clk 0:00:25]} 37. Ra8+ {[%clk 0:00:13]}  Kh7 {[%clk 0:00:24]} 38. e6 {[%clk 0:00:13]}  d2 {[%clk 0:00:21]} 39. Rd8 {[%clk 0:00:11]}  fxe6 {[%clk 0:00:18]} 40. Rxd2 {[%clk 0:00:10]}  Rxa4 {[%clk 0:00:17]} 41. Rd7+ {[%clk 0:00:09]}  Kg6 {[%clk 0:00:16]} 42. Rg7+ {[%clk 0:00:09]}  Kf5 {[%clk 0:00:16]} 43. f7 {[%clk 0:00:10]}  Ra8 {[%clk 0:00:15]} 44. Rg8 {[%clk 0:00:10]} 1-0


[Site "https://www.chess.com"]

[Event "Titled Tuesday Blitz June 8 2021"]
[White "Ivanov, Mike"]
[Black "Rychkov, Oleg"]
[WhiteFideId "2613158"]
[BlackFideId "4122852"]
[WhiteElo "2197"]
[BlackElo "2493"]
[Result "0-1"]
[Round "07"]
[TimeControl "180+1"]
[Date "2021.06.08"]
[WhiteClock "0:00:01"]
[BlackClock "0:00:56"]

1. e4 {[%clk 0:03:00]}  e5 {[%clk 0:02:56]} 2. Nf3 {[%clk 0:03:00]}  Nc6 {[%clk 0:02:56]} 3. Nc3 {[%clk 0:03:00]}  Nf6 {[%clk 0:02:54]} 4. Bb5 {[%clk 0:03:00]}  Bd6 {[%clk 0:02:54]} 5. d3 {[%clk 0:02:59]}  O-O {[%clk 0:02:53]} 6. a3 {[%clk 0:02:59]}  Ne7 {[%clk 0:02:53]} 7. g4 {[%clk 0:02:39]}  c6 {[%clk 0:02:51]} 8. Ba4 {[%clk 0:02:37]}  Ng6 {[%clk 0:02:39]} 9. g5 {[%clk 0:02:29]}  Nh5 {[%clk 0:02:38]} 10. Be3 {[%clk 0:02:03]}  Bc7 {[%clk 0:02:32]} 11. d4 {[%clk 0:01:31]}  Nhf4 {[%clk 0:02:26]} 12. Rg1 {[%clk 0:01:06]}  exd4 {[%clk 0:02:21]} 13. Nxd4 {[%clk 0:01:03]}  d5 {[%clk 0:02:21]} 14. exd5 {[%clk 0:00:58]}  Nxd5 {[%clk 0:02:21]} 15. Nxd5 {[%clk 0:00:55]}  Qxd5 {[%clk 0:02:21]} 16. Qd2 {[%clk 0:00:44]}  Bxh2 {[%clk 0:02:19]} 17. Bb3 {[%clk 0:00:28]}  Qe4 {[%clk 0:02:17]} 18. f3 {[%clk 0:00:14]}  Qh4+ {[%clk 0:02:10]} 19. Bf2 {[%clk 0:00:14]}  Qf4 {[%clk 0:02:10]} 20. Qxf4 {[%clk 0:00:10]}  Bxf4 {[%clk 0:02:02]} 21. Ne2 {[%clk 0:00:09]}  Re8 {[%clk 0:02:01]} 22. Kd1 {[%clk 0:00:07]}  Be5 {[%clk 0:01:59]} 23. c3 {[%clk 0:00:02]}  Bf5 {[%clk 0:01:57]} 24. Bc2 {[%clk 0:00:02]}  Rad8+ {[%clk 0:01:57]} 25. Kc1 {[%clk 0:00:03]}  Bxc2 {[%clk 0:01:47]} 26. Kxc2 {[%clk 0:00:04]}  Nf4 {[%clk 0:01:47]} 27. Nxf4 {[%clk 0:00:03]}  Bxf4 {[%clk 0:01:48]} 28. Rae1 {[%clk 0:00:04]}  Rd2+ {[%clk 0:01:47]} 29. Kb3 {[%clk 0:00:04]}  Red8 {[%clk 0:01:30]} 30. Be3 {[%clk 0:00:04]}  Bxe3 {[%clk 0:01:28]} 31. Rxe3 {[%clk 0:00:05]}  R2d7 {[%clk 0:01:28]} 32. Rge1 {[%clk 0:00:05]}  Kf8 {[%clk 0:01:28]} 33. f4 {[%clk 0:00:05]}  Rd6 {[%clk 0:01:18]} 34. Rh3 {[%clk 0:00:05]}  h6 {[%clk 0:01:18]} 35. Reh1 {[%clk 0:00:04]}  Rd2 {[%clk 0:01:06]} 36. gxh6 {[%clk 0:00:03]}  gxh6 {[%clk 0:01:06]} 37. Rxh6 {[%clk 0:00:03]}  R8d5 {[%clk 0:01:07]} 38. Rh8+ {[%clk 0:00:03]}  Ke7 {[%clk 0:01:07]} 39. a4 {[%clk 0:00:02]}  Re2 {[%clk 0:00:58]} 40. Rb8 {[%clk 0:00:02]}  Rd7 {[%clk 0:00:58]} 41. Rh7 {[%clk 0:00:02]}  Kf6 {[%clk 0:00:58]} 42. Rf8 {[%clk 0:00:02]}  Kg6 {[%clk 0:00:57]} 43. Rhh8 {[%clk 0:00:01]}  Rdd2 {[%clk 0:00:56]} 44. Rhg8+ {[%clk 0:00:01]}  Kf6 {[%clk 0:00:56]} 0-1


[Site "https://www.chess.com"]

[Event "Titled Tuesday Blitz June 8 2021"]
[White "Ivic, Velimir"]
[Black "Petesch, Gabriel"]
[WhiteFideId "950122"]
[BlackFideId "2032465"]
[WhiteElo "2509"]
[BlackElo "2374"]
[Result "1-0"]
[Round "07"]
[TimeControl "180+1"]
[Date "2021.06.08"]
[WhiteClock "0:01:20"]
[BlackClock "0:00:02"]

1. e4 {[%clk 0:03:00]}  d6 {[%clk 0:02:57]} 2. d4 {[%clk 0:03:00]}  Nf6 {[%clk 0:02:57]} 3. Nc3 {[%clk 0:03:01]}  g6 {[%clk 0:02:55]} 4. Be3 {[%clk 0:03:00]}  Bg7 {[%clk 0:02:54]} 5. Qd2 {[%clk 0:02:59]}  c6 {[%clk 0:02:49]} 6. Bh6 {[%clk 0:02:59]}  Bxh6 {[%clk 0:02:44]} 7. Qxh6 {[%clk 0:02:59]}  Nbd7 {[%clk 0:02:41]} 8. Nf3 {[%clk 0:02:46]}  Qc7 {[%clk 0:02:38]} 9. O-O-O {[%clk 0:02:39]}  b6 {[%clk 0:02:25]} 10. Ng5 {[%clk 0:02:27]}  Bb7 {[%clk 0:01:53]} 11. f4 {[%clk 0:02:24]}  Rf8 {[%clk 0:01:41]} 12. e5 {[%clk 0:02:22]}  Ng4 {[%clk 0:01:34]} 13. Qh4 {[%clk 0:02:22]}  Ne3 {[%clk 0:01:31]} 14. Re1 {[%clk 0:02:22]}  Nf5 {[%clk 0:01:10]} 15. Qf2 {[%clk 0:02:22]}  dxe5 {[%clk 0:00:58]} 16. dxe5 {[%clk 0:02:17]}  h6 {[%clk 0:00:48]} 17. Nxf7 {[%clk 0:02:09]}  Rxf7 {[%clk 0:00:45]} 18. e6 {[%clk 0:02:08]}  Rf8 {[%clk 0:00:42]} 19. exd7+ {[%clk 0:02:09]}  Qxd7 {[%clk 0:00:41]} 20. Bc4 {[%clk 0:02:09]}  Qd4 {[%clk 0:00:37]} 21. Qxd4 {[%clk 0:01:59]}  Nxd4 {[%clk 0:00:38]} 22. Rhf1 {[%clk 0:01:58]}  Kd7 {[%clk 0:00:20]} 23. Rd1 {[%clk 0:01:20]}  c5 {[%clk 0:00:18]} 24. Ne2 {[%clk 0:01:20]}  Bxg2 {[%clk 0:00:12]} 25. Nxd4 {[%clk 0:01:20]}  cxd4 {[%clk 0:00:10]} 26. Rxd4+ {[%clk 0:01:21]}  Kc7 {[%clk 0:00:09]} 27. Re1 {[%clk 0:01:21]}  Rfe8 {[%clk 0:00:04]} 28. Bb5 {[%clk 0:01:21]}  Rad8 {[%clk 0:00:02]} 29. Rc4+ {[%clk 0:01:20]} 1-0


[Site "https://www.chess.com"]

[Event "Titled Tuesday Blitz June 8 2021"]
[White "Jobava, Baadur"]
[Black "Makhnev, Denis"]
[WhiteFideId "13601520"]
[BlackFideId "13707647"]
[WhiteElo "2748"]
[BlackElo "2549"]
[Result "1-0"]
[Round "07"]
[TimeControl "180+1"]
[Date "2021.06.08"]
[WhiteClock "0:01:48"]
[BlackClock "0:00:09"]

1. e4 {[%clk 0:02:56]}  c6 {[%clk 0:03:00]} 2. c4 {[%clk 0:02:55]}  d5 {[%clk 0:03:00]} 3. cxd5 {[%clk 0:02:56]}  cxd5 {[%clk 0:03:00]} 4. exd5 {[%clk 0:02:57]}  Nf6 {[%clk 0:03:00]} 5. Qa4+ {[%clk 0:02:57]}  Bd7 {[%clk 0:02:59]} 6. Qb3 {[%clk 0:02:57]}  Na6 {[%clk 0:02:59]} 7. d4 {[%clk 0:02:56]}  Qb6 {[%clk 0:02:57]} 8. Nc3 {[%clk 0:02:55]}  Qxb3 {[%clk 0:02:53]} 9. axb3 {[%clk 0:02:56]}  Nb4 {[%clk 0:02:53]} 10. Ra5 {[%clk 0:02:38]}  b6 {[%clk 0:02:42]} 11. Rb5 {[%clk 0:02:36]}  Nc2+ {[%clk 0:02:39]} 12. Kd1 {[%clk 0:02:36]}  Nxd4 {[%clk 0:02:33]} 13. Rb4 {[%clk 0:02:36]}  e5 {[%clk 0:02:32]} 14. Rc4 {[%clk 0:02:36]}  Bd6 {[%clk 0:02:29]} 15. Nf3 {[%clk 0:02:32]}  b5 {[%clk 0:02:17]} 16. Rxd4 {[%clk 0:02:30]}  exd4 {[%clk 0:02:17]} 17. Nxb5 {[%clk 0:02:30]}  Ke7 {[%clk 0:01:47]} 18. Nxd6 {[%clk 0:02:28]}  Kxd6 {[%clk 0:01:47]} 19. Bf4+ {[%clk 0:02:28]}  Kxd5 {[%clk 0:01:43]} 20. Bc4+ {[%clk 0:02:29]}  Kc5 {[%clk 0:01:43]} 21. Re1 {[%clk 0:02:28]}  Rhe8 {[%clk 0:01:38]} 22. Ne5 {[%clk 0:02:28]}  Be6 {[%clk 0:01:38]} 23. Nd3+ {[%clk 0:02:27]}  Kb6 {[%clk 0:01:36]} 24. Be5 {[%clk 0:02:27]}  Rac8 {[%clk 0:01:34]} 25. Bxd4+ {[%clk 0:02:26]}  Kc6 {[%clk 0:01:25]} 26. Ne5+ {[%clk 0:02:22]}  Kd6 {[%clk 0:01:25]} 27. Kd2 {[%clk 0:02:18]}  Rc7 {[%clk 0:01:16]} 28. Ra1 {[%clk 0:02:12]}  Bxc4 {[%clk 0:01:14]} 29. bxc4 {[%clk 0:02:13]}  Ne4+ {[%clk 0:01:05]} 30. Ke3 {[%clk 0:02:08]}  Nc5 {[%clk 0:01:02]} 31. b4 {[%clk 0:02:07]}  Ne6 {[%clk 0:00:30]} 32. Ra6+ {[%clk 0:02:06]}  Ke7 {[%clk 0:00:31]} 33. Bxa7 {[%clk 0:02:03]}  Ra8 {[%clk 0:00:26]} 34. b5 {[%clk 0:01:57]}  Nd8 {[%clk 0:00:16]} 35. Bb6 {[%clk 0:01:52]}  Rxa6 {[%clk 0:00:13]} 36. bxa6 {[%clk 0:01:53]}  Rc8 {[%clk 0:00:12]} 37. a7 {[%clk 0:01:49]}  Nb7 {[%clk 0:00:10]} 38. Nc6+ {[%clk 0:01:47]}  Kd7 {[%clk 0:00:09]} 39. Nb8+ {[%clk 0:01:48]} 1-0


[Site "https://www.chess.com"]

[Event "Titled Tuesday Blitz June 8 2021"]
[White "Khusnutdinov, Rustam"]
[Black "Herrera Reyes, Jose Antonio"]
[WhiteFideId "13701703"]
[BlackFideId "2274914"]
[WhiteElo "2806"]
[BlackElo "2628"]
[Result "1-0"]
[Round "07"]
[TimeControl "180+1"]
[Date "2021.06.08"]
[WhiteClock "0:00:45"]
[BlackClock "0:00:15"]

1. d4 {[%clk 0:03:00]}  Nf6 {[%clk 0:02:59]} 2. c4 {[%clk 0:03:00]}  c5 {[%clk 0:02:57]} 3. d5 {[%clk 0:02:59]}  b5 {[%clk 0:02:57]} 4. Qc2 {[%clk 0:02:58]}  g6 {[%clk 0:02:55]} 5. e4 {[%clk 0:02:58]}  Bg7 {[%clk 0:02:55]} 6. Nf3 {[%clk 0:02:47]}  O-O {[%clk 0:02:50]} 7. cxb5 {[%clk 0:02:45]}  a6 {[%clk 0:02:48]} 8. a4 {[%clk 0:02:46]}  e6 {[%clk 0:02:47]} 9. dxe6 {[%clk 0:02:40]}  dxe6 {[%clk 0:02:44]} 10. Nc3 {[%clk 0:02:39]}  Bb7 {[%clk 0:02:41]} 11. Ra3 {[%clk 0:02:24]}  Qc7 {[%clk 0:02:22]} 12. Be2 {[%clk 0:02:21]}  axb5 {[%clk 0:02:02]} 13. Bxb5 {[%clk 0:02:22]}  Na6 {[%clk 0:02:00]} 14. O-O {[%clk 0:02:21]}  Nb4 {[%clk 0:02:00]} 15. Qb1 {[%clk 0:02:21]}  Rfb8 {[%clk 0:01:57]} 16. h3 {[%clk 0:02:19]}  Nc6 {[%clk 0:01:53]} 17. Be3 {[%clk 0:02:18]}  Ne5 {[%clk 0:01:44]} 18. Nd2 {[%clk 0:02:08]}  Nh5 {[%clk 0:01:06]} 19. Rc1 {[%clk 0:02:05]}  Nd7 {[%clk 0:01:01]} 20. Ne2 {[%clk 0:02:01]}  Nhf6 {[%clk 0:00:53]} 21. b4 {[%clk 0:01:57]}  Bc6 {[%clk 0:00:47]} 22. Bxc6 {[%clk 0:01:56]}  Qxc6 {[%clk 0:00:48]} 23. b5 {[%clk 0:01:57]}  Qb7 {[%clk 0:00:46]} 24. Qc2 {[%clk 0:01:44]}  Rd8 {[%clk 0:00:44]} 25. Rb1 {[%clk 0:01:42]}  Qb6 {[%clk 0:00:39]} 26. a5 {[%clk 0:01:31]}  Qb8 {[%clk 0:00:34]} 27. b6 {[%clk 0:01:28]}  Ra6 {[%clk 0:00:28]} 28. Nc4 {[%clk 0:01:25]}  Qb7 {[%clk 0:00:28]} 29. Nd6 {[%clk 0:01:21]}  Qc6 {[%clk 0:00:28]} 30. Nb5 {[%clk 0:00:53]}  Nxe4 {[%clk 0:00:20]} 31. Nc7 {[%clk 0:00:53]}  Raa8 {[%clk 0:00:19]} 32. Nxa8 {[%clk 0:00:52]}  Rxa8 {[%clk 0:00:20]} 33. b7 {[%clk 0:00:51]}  Rb8 {[%clk 0:00:20]} 34. a6 {[%clk 0:00:52]}  Nb6 {[%clk 0:00:13]} 35. a7 {[%clk 0:00:47]}  Rxb7 {[%clk 0:00:11]} 36. Rxb6 {[%clk 0:00:45]}  Rxb6 {[%clk 0:00:12]} 37. a8=Q+ {[%clk 0:00:45]}  Qxa8 {[%clk 0:00:13]} 38. Rxa8+ {[%clk 0:00:46]}  Bf8 {[%clk 0:00:14]} 39. Bh6 {[%clk 0:00:45]}  Rb8 {[%clk 0:00:15]} 40. Rxb8 {[%clk 0:00:44]}  f6 {[%clk 0:00:15]} 41. Rxf8# {[%clk 0:00:45]} 1-0


[Site "https://www.chess.com"]